[Event "Titled Tuesday Blitz October 25 Late 2022"]
[White "Fernandez De La Vara, Arnaldo"]
[Black "Liu, Kelsey"]
[WhiteFideId "3518388"]
[BlackFideId "30944481"]
[WhiteElo "2387"]
[BlackElo "2322"]
[Result "1-0"]
[Round "01"]
[TimeControl "180+1"]
[Date "2022.10.26"]
[WhiteClock "0:02:12"]
[BlackClock "0:00:01"]

1. Nf3 {[%clk 0:03:00]}  Nf6 {[%clk 0:02:08]} 2. b3 {[%clk 0:03:01]}  e6 {[%clk 0:02:08]} 3. Bb2 {[%clk 0:03:01]}  Be7 {[%clk 0:02:08]} 4. g3 {[%clk 0:03:01]}  O-O {[%clk 0:02:08]} 5. Bg2 {[%clk 0:03:02]}  d5 {[%clk 0:02:09]} 6. c4 {[%clk 0:03:02]}  c5 {[%clk 0:02:09]} 7. cxd5 {[%clk 0:03:01]}  exd5 {[%clk 0:02:09]} 8. O-O {[%clk 0:03:02]}  Nc6 {[%clk 0:02:09]} 9. d4 {[%clk 0:03:02]}  b6 {[%clk 0:02:04]} 10. Nc3 {[%clk 0:03:01]}  Bf5 {[%clk 0:01:35]} 11. Rc1 {[%clk 0:03:00]}  Rc8 {[%clk 0:01:31]} 12. dxc5 {[%clk 0:02:49]}  bxc5 {[%clk 0:01:29]} 13. Na4 {[%clk 0:02:49]}  Nb4 {[%clk 0:01:09]} 14. a3 {[%clk 0:02:49]}  Na6 {[%clk 0:01:04]} 15. Nd2 {[%clk 0:02:37]}  d4 {[%clk 0:01:00]} 16. Bb7 {[%clk 0:02:35]}  Qd6 {[%clk 0:00:13]} 17. Nc4 {[%clk 0:02:24]}  Qe6 {[%clk 0:00:10]} 18. Bxc8 {[%clk 0:02:16]}  Rxc8 {[%clk 0:00:11]} 19. Re1 {[%clk 0:02:16]}  Qd5 {[%clk 0:00:04]} 20. f3 {[%clk 0:02:14]}  Bh3 {[%clk 0:00:03]} 21. e4 {[%clk 0:02:14]}  dxe3 {[%clk 0:00:01]} 22. Rxe3 {[%clk 0:02:12]} 1-0


[Site "https://www.chess.com"]

[Event "Titled Tuesday Blitz October 25 Late 2022"]
[White "Ferreira, Vitor Hugo Vieira"]
[Black "Salgado Lopez, Ivan"]
[WhiteFideId "2119765"]
[BlackFideId "2257327"]
[WhiteElo "2168"]
[BlackElo "2594"]
[Result "1-0"]
[Round "01"]
[TimeControl "180+1"]
[Date "2022.10.26"]
[WhiteClock "0:01:36"]
[BlackClock "0:01:14"]

1. Nf3 {[%clk 0:02:57]}  d5 {[%clk 0:03:00]} 2. g3 {[%clk 0:02:58]}  e6 {[%clk 0:03:00]} 3. Bg2 {[%clk 0:02:58]}  Nf6 {[%clk 0:03:01]} 4. O-O {[%clk 0:02:59]}  Be7 {[%clk 0:03:01]} 5. c4 {[%clk 0:03:00]}  O-O {[%clk 0:03:02]} 6. cxd5 {[%clk 0:03:01]}  exd5 {[%clk 0:03:02]} 7. d3 {[%clk 0:03:01]}  c6 {[%clk 0:03:01]} 8. Nc3 {[%clk 0:03:02]}  Na6 {[%clk 0:02:59]} 9. e4 {[%clk 0:03:01]}  dxe4 {[%clk 0:02:46]} 10. dxe4 {[%clk 0:03:01]}  Nc5 {[%clk 0:02:43]} 11. e5 {[%clk 0:03:02]}  Qxd1 {[%clk 0:02:35]} 12. Rxd1 {[%clk 0:03:00]}  Nfd7 {[%clk 0:02:36]} 13. Bf4 {[%clk 0:02:44]}  Re8 {[%clk 0:02:34]} 14. Rd2 {[%clk 0:02:40]}  h6 {[%clk 0:02:32]} 15. h4 {[%clk 0:02:39]}  Ne6 {[%clk 0:02:28]} 16. Be3 {[%clk 0:02:39]}  Nb6 {[%clk 0:02:27]} 17. b3 {[%clk 0:02:35]}  Bc5 {[%clk 0:02:24]} 18. Bxc5 {[%clk 0:02:33]}  Nxc5 {[%clk 0:02:25]} 19. Rad1 {[%clk 0:02:33]}  Bg4 {[%clk 0:02:24]} 20. Re1 {[%clk 0:02:27]}  Ncd7 {[%clk 0:02:19]} 21. Rde2 {[%clk 0:02:21]}  Re7 {[%clk 0:02:15]} 22. Re3 {[%clk 0:02:05]}  Rae8 {[%clk 0:02:13]} 23. Nh2 {[%clk 0:02:05]}  Bf5 {[%clk 0:02:09]} 24. f4 {[%clk 0:02:05]}  h5 {[%clk 0:02:08]} 25. Nf3 {[%clk 0:02:01]}  Bg4 {[%clk 0:01:57]} 26. Ng5 {[%clk 0:01:59]}  Nf8 {[%clk 0:01:39]} 27. Nge4 {[%clk 0:01:57]}  Nc8 {[%clk 0:01:34]} 28. Nf2 {[%clk 0:01:53]}  Bf5 {[%clk 0:01:32]} 29. Na4 {[%clk 0:01:52]}  Ne6 {[%clk 0:01:29]} 30. Bf3 {[%clk 0:01:50]}  g6 {[%clk 0:01:29]} 31. Nc3 {[%clk 0:01:46]}  Rd7 {[%clk 0:01:28]} 32. Nfe4 {[%clk 0:01:45]}  Bxe4 {[%clk 0:01:24]} 33. Nxe4 {[%clk 0:01:46]}  Kg7 {[%clk 0:01:24]} 34. Nf6 {[%clk 0:01:47]}  Red8 {[%clk 0:01:24]} 35. Nxd7 {[%clk 0:01:47]}  Rxd7 {[%clk 0:01:25]} 36. Rd1 {[%clk 0:01:45]}  Nd4 {[%clk 0:01:24]} 37. Kf2 {[%clk 0:01:43]}  Ne7 {[%clk 0:01:24]} 38. Red3 {[%clk 0:01:41]}  c5 {[%clk 0:01:24]} 39. b4 {[%clk 0:01:41]}  b6 {[%clk 0:01:24]} 40. bxc5 {[%clk 0:01:41]}  bxc5 {[%clk 0:01:25]} 41. Be4 {[%clk 0:01:40]}  Rc7 {[%clk 0:01:23]} 42. Rc3 {[%clk 0:01:37]}  Nc8 {[%clk 0:01:14]} 43. Rxd4 {[%clk 0:01:36]} 1-0


[Site "https://www.chess.com"]

[Event "Titled Tuesday Blitz October 25 Late 2022"]
[White "Florescu, Codrut-Constantin"]
[Black "Sorokin, Aleksey"]
[WhiteFideId "1202200"]
[BlackFideId "24176460"]
[WhiteElo "2191"]
[BlackElo "2476"]
[Result "0-1"]
[Round "01"]
[TimeControl "180+1"]
[Date "2022.10.26"]
[WhiteClock "0:02:42"]
[BlackClock "0:02:20"]

1. e4 {[%clk 0:03:00]}  c6 {[%clk 0:02:58]} 2. d4 {[%clk 0:02:59]}  d5 {[%clk 0:02:58]} 3. e5 {[%clk 0:03:00]}  Bf5 {[%clk 0:02:57]} 4. h4 {[%clk 0:03:00]}  h5 {[%clk 0:02:55]} 5. c4 {[%clk 0:03:00]}  e6 {[%clk 0:02:55]} 6. Nc3 {[%clk 0:02:59]}  Ne7 {[%clk 0:02:55]} 7. Bd3 {[%clk 0:02:57]}  Bxd3 {[%clk 0:02:54]} 8. Qxd3 {[%clk 0:02:56]}  dxc4 {[%clk 0:02:54]} 9. Qxc4 {[%clk 0:02:56]}  Nd7 {[%clk 0:02:55]} 10. Nf3 {[%clk 0:02:55]}  Nf5 {[%clk 0:02:52]} 11. Bg5 {[%clk 0:02:54]}  Be7 {[%clk 0:02:52]} 12. O-O-O {[%clk 0:02:52]}  Nb6 {[%clk 0:02:50]} 13. Qb3 {[%clk 0:02:51]}  Qc7 {[%clk 0:02:36]} 14. Kb1 {[%clk 0:02:49]}  a5 {[%clk 0:02:32]} 15. Ne4 {[%clk 0:02:49]}  a4 {[%clk 0:02:32]} 16. Qc2 {[%clk 0:02:48]}  a3 {[%clk 0:02:30]} 17. b3 {[%clk 0:02:47]}  Nd5 {[%clk 0:02:29]} 18. Nfd2 {[%clk 0:02:43]}  Nxd4 {[%clk 0:02:24]} 19. Qd3 {[%clk 0:02:42]}  Qxe5 {[%clk 0:02:20]} 20. Nc4 {[%clk 0:02:42]}  Qxe4 {[%clk 0:02:20]} 0-1


[Site "https://www.chess.com"]

[Event "Titled Tuesday Blitz October 25 Late 2022"]
[White "Floresvillar Gonzalez, Luis Migu"]
[Black "Lymar, Vladislav"]
[WhiteFideId "5100542"]
[BlackFideId "14162180"]
[WhiteElo "2040"]
[BlackElo "2094"]
[Result "0-1"]
[Round "01"]
[TimeControl "180+1"]
[Date "2022.10.26"]
[WhiteClock "0:00:14"]
[BlackClock "0:00:27"]

1. d4 {[%clk 0:02:59]}  d5 {[%clk 0:02:59]} 2. c3 {[%clk 0:02:58]}  Nf6 {[%clk 0:02:59]} 3. Nf3 {[%clk 0:02:57]}  c5 {[%clk 0:02:59]} 4. Bg5 {[%clk 0:02:55]}  Ne4 {[%clk 0:02:58]} 5. h4 {[%clk 0:02:53]}  h6 {[%clk 0:02:57]} 6. Bf4 {[%clk 0:02:52]}  Nc6 {[%clk 0:02:57]} 7. e3 {[%clk 0:02:52]}  Bg4 {[%clk 0:02:57]} 8. Be2 {[%clk 0:02:50]}  e6 {[%clk 0:02:56]} 9. Nbd2 {[%clk 0:02:47]}  Nxd2 {[%clk 0:02:50]} 10. Qxd2 {[%clk 0:02:46]}  Be7 {[%clk 0:02:49]} 11. g3 {[%clk 0:02:44]}  Bxf3 {[%clk 0:02:45]} 12. Bxf3 {[%clk 0:02:43]}  O-O {[%clk 0:02:29]} 13. h5 {[%clk 0:02:43]}  b5 {[%clk 0:02:27]} 14. O-O {[%clk 0:02:40]}  b4 {[%clk 0:02:20]} 15. Kg2 {[%clk 0:02:39]}  a5 {[%clk 0:02:17]} 16. Rh1 {[%clk 0:02:22]}  Rc8 {[%clk 0:01:57]} 17. a4 {[%clk 0:02:19]}  Kh8 {[%clk 0:01:51]} 18. Rad1 {[%clk 0:02:00]}  Bg5 {[%clk 0:01:37]} 19. dxc5 {[%clk 0:01:49]}  Bxf4 {[%clk 0:01:34]} 20. exf4 {[%clk 0:01:43]}  Qe7 {[%clk 0:01:32]} 21. c4 {[%clk 0:01:39]}  Rfd8 {[%clk 0:01:04]} 22. cxd5 {[%clk 0:01:37]}  exd5 {[%clk 0:01:04]} 23. Rhe1 {[%clk 0:01:30]}  Qxc5 {[%clk 0:01:05]} 24. Rc1 {[%clk 0:00:53]}  Qd4 {[%clk 0:01:01]} 25. Qxd4 {[%clk 0:00:48]}  Nxd4 {[%clk 0:01:02]} 26. Rxc8 {[%clk 0:00:47]}  Rxc8 {[%clk 0:01:03]} 27. Bxd5 {[%clk 0:00:45]}  Kg8 {[%clk 0:01:03]} 28. Rd1 {[%clk 0:00:39]}  Nf5 {[%clk 0:01:01]} 29. b3 {[%clk 0:00:31]}  Rc2 {[%clk 0:00:59]} 30. Rd3 {[%clk 0:00:29]}  Kf8 {[%clk 0:00:57]} 31. Be4 {[%clk 0:00:24]}  Rc5 {[%clk 0:00:56]} 32. Bxf5 {[%clk 0:00:23]}  Rxf5 {[%clk 0:00:57]} 33. Kf3 {[%clk 0:00:22]}  Rxh5 {[%clk 0:00:56]} 34. g4 {[%clk 0:00:21]}  Rc5 {[%clk 0:00:55]} 35. f5 {[%clk 0:00:19]}  Ke7 {[%clk 0:00:55]} 36. Ke4 {[%clk 0:00:19]}  Kf6 {[%clk 0:00:53]} 37. f4 {[%clk 0:00:19]}  Ke7 {[%clk 0:00:37]} 38. g5 {[%clk 0:00:18]}  h5 {[%clk 0:00:37]} 39. Re3 {[%clk 0:00:15]}  Rc3 {[%clk 0:00:34]} 40. Rxc3 {[%clk 0:00:14]}  bxc3 {[%clk 0:00:34]} 41. Kd3 {[%clk 0:00:15]}  h4 {[%clk 0:00:34]} 42. b4 {[%clk 0:00:15]}  h3 {[%clk 0:00:26]} 43. b5 {[%clk 0:00:15]}  h2 {[%clk 0:00:26]} 44. b6 {[%clk 0:00:15]}  h1=Q {[%clk 0:00:27]} 45. Kxc3 {[%clk 0:00:14]}  Qc6+ {[%clk 0:00:27]} 0-1


[Site "https://www.chess.com"]

[Event "Titled Tuesday Blitz October 25 Late 2022"]
[White "Gatterer, Florian"]
[Black "Osmak, Yuliia"]
[WhiteFideId "811688"]
[BlackFideId "14101602"]
[WhiteElo "2218"]
[BlackElo "2328"]
[Result "0-1"]
[Round "01"]
[TimeControl "180+1"]
[Date "2022.10.26"]
[WhiteClock "0:00:07"]
[BlackClock "0:00:08"]

1. Nf3 {[%clk 0:03:00]}  d5 {[%clk 0:02:58]} 2. b3 {[%clk 0:02:53]}  Nf6 {[%clk 0:02:57]} 3. Bb2 {[%clk 0:02:53]}  g6 {[%clk 0:02:56]} 4. e3 {[%clk 0:02:51]}  Bg7 {[%clk 0:02:55]} 5. c4 {[%clk 0:02:51]}  e6 {[%clk 0:02:55]} 6. d4 {[%clk 0:02:48]}  O-O {[%clk 0:02:53]} 7. Nbd2 {[%clk 0:02:47]}  b6 {[%clk 0:02:50]} 8. cxd5 {[%clk 0:02:45]}  exd5 {[%clk 0:02:49]} 9. Rc1 {[%clk 0:02:41]}  Bb7 {[%clk 0:02:45]} 10. Be2 {[%clk 0:02:33]}  Ne4 {[%clk 0:02:45]} 11. Nxe4 {[%clk 0:02:26]}  dxe4 {[%clk 0:02:46]} 12. Ne5 {[%clk 0:02:21]}  Qe7 {[%clk 0:02:41]} 13. O-O {[%clk 0:02:12]}  c5 {[%clk 0:02:39]} 14. f4 {[%clk 0:01:55]}  Nd7 {[%clk 0:02:25]} 15. Nxd7 {[%clk 0:01:20]}  Qxd7 {[%clk 0:02:26]} 16. f5 {[%clk 0:01:10]}  gxf5 {[%clk 0:02:23]} 17. Bc4 {[%clk 0:00:35]}  Rad8 {[%clk 0:02:15]} 18. Qh5 {[%clk 0:00:32]}  Bc8 {[%clk 0:01:59]} 19. Qg5 {[%clk 0:00:24]}  Kh8 {[%clk 0:01:53]} 20. Rcd1 {[%clk 0:00:23]}  Qc6 {[%clk 0:01:33]} 21. Qxg7+ {[%clk 0:00:20]}  Kxg7 {[%clk 0:01:32]} 22. d5+ {[%clk 0:00:20]}  Qf6 {[%clk 0:01:32]} 23. Bxf6+ {[%clk 0:00:19]}  Kxf6 {[%clk 0:01:33]} 24. g4 {[%clk 0:00:20]}  Rg8 {[%clk 0:01:28]} 25. h3 {[%clk 0:00:18]}  h5 {[%clk 0:01:27]} 26. Rf4 {[%clk 0:00:12]}  hxg4 {[%clk 0:01:27]} 27. hxg4 {[%clk 0:00:13]}  Rxg4+ {[%clk 0:01:25]} 28. Rxg4 {[%clk 0:00:13]}  fxg4 {[%clk 0:01:26]} 29. Rf1+ {[%clk 0:00:11]}  Bf5 {[%clk 0:01:19]} 30. d6 {[%clk 0:00:11]}  Rxd6 {[%clk 0:01:19]} 31. Bxf7 {[%clk 0:00:10]}  Ke5 {[%clk 0:01:18]} 32. Bc4 {[%clk 0:00:09]}  Rd2 {[%clk 0:01:17]} 33. Rf2 {[%clk 0:00:08]}  Rxf2 {[%clk 0:01:16]} 34. Kxf2 {[%clk 0:00:09]}  Be6 {[%clk 0:01:12]} 35. Be2 {[%clk 0:00:09]}  a5 {[%clk 0:01:07]} 36. Kg3 {[%clk 0:00:08]}  Bd7 {[%clk 0:00:56]} 37. Bd1 {[%clk 0:00:06]}  b5 {[%clk 0:00:55]} 38. a3 {[%clk 0:00:05]}  b4 {[%clk 0:00:44]} 39. axb4 {[%clk 0:00:04]}  cxb4 {[%clk 0:00:42]} 40. Bc2 {[%clk 0:00:04]}  Be6 {[%clk 0:00:41]} 41. Bd1 {[%clk 0:00:04]}  a4 {[%clk 0:00:16]} 42. bxa4 {[%clk 0:00:05]}  b3 {[%clk 0:00:16]} 43. Kf2 {[%clk 0:00:03]}  b2 {[%clk 0:00:16]} 44. Bc2 {[%clk 0:00:03]}  Bb3 {[%clk 0:00:13]} 45. Bb1 {[%clk 0:00:02]}  Bxa4 {[%clk 0:00:12]} 46. Kg3 {[%clk 0:00:03]}  Bd1 {[%clk 0:00:10]} 47. Kf2 {[%clk 0:00:02]}  Bf3 {[%clk 0:00:09]} 48. Kg3 {[%clk 0:00:02]}  Kd5 {[%clk 0:00:09]} 49. Kf4 {[%clk 0:00:02]}  Kc4 {[%clk 0:00:09]} 50. Ke5 {[%clk 0:00:02]}  Kc3 {[%clk 0:00:09]} 51. Kf4 {[%clk 0:00:01]}  Kd2 {[%clk 0:00:09]} 52. Kg3 {[%clk 0:00:01]}  Kc1 {[%clk 0:00:09]} 53. Ba2 {[%clk 0:00:02]}  b1=Q {[%clk 0:00:09]} 54. Bxb1 {[%clk 0:00:03]}  Kxb1 {[%clk 0:00:10]} 55. Kf2 {[%clk 0:00:03]}  Kc2 {[%clk 0:00:10]} 56. Kg3 {[%clk 0:00:04]}  Kd2 {[%clk 0:00:10]} 57. Kf4 {[%clk 0:00:05]}  Ke2 {[%clk 0:00:10]} 58. Kg3 {[%clk 0:00:06]}  Kxe3 {[%clk 0:00:10]} 59. Kh4 {[%clk 0:00:07]}  Kf4 {[%clk 0:00:10]} 60. Kh5 {[%clk 0:00:06]}  g3+ {[%clk 0:00:10]} 61. Kh4 {[%clk 0:00:06]}  g2 {[%clk 0:00:10]} 62. Kh3 {[%clk 0:00:07]}  g1=Q {[%clk 0:00:08]} 0-1


[Site "https://www.chess.com"]

[Event "Titled Tuesday Blitz October 25 Late 2022"]
[White "Girsh, Daniel"]
[Black "Firouzja, Alireza"]
[WhiteFideId "30949190"]
[BlackFideId "12573981"]
[WhiteElo "2521"]
[BlackElo "3106"]
[Result "0-1"]
[Round "01"]
[TimeControl "180+1"]
[Date "2022.10.26"]
[WhiteClock "0:00:11"]
[BlackClock "0:00:02"]

1. e4 {[%clk 0:02:56]}  c5 {[%clk 0:02:58]} 2. Nf3 {[%clk 0:02:57]}  d6 {[%clk 0:02:58]} 3. d4 {[%clk 0:02:57]}  cxd4 {[%clk 0:02:59]} 4. Nxd4 {[%clk 0:02:57]}  Nf6 {[%clk 0:02:59]} 5. Nc3 {[%clk 0:02:58]}  Nc6 {[%clk 0:03:00]} 6. f3 {[%clk 0:02:54]}  e5 {[%clk 0:02:57]} 7. Nb3 {[%clk 0:02:55]}  Be7 {[%clk 0:02:49]} 8. Be3 {[%clk 0:02:52]}  O-O {[%clk 0:02:49]} 9. Nd5 {[%clk 0:02:51]}  Nxd5 {[%clk 0:02:43]} 10. exd5 {[%clk 0:02:50]}  Nb8 {[%clk 0:02:44]} 11. Be2 {[%clk 0:02:50]}  Bg5 {[%clk 0:02:37]} 12. Qd2 {[%clk 0:02:49]}  Bxe3 {[%clk 0:02:37]} 13. Qxe3 {[%clk 0:02:50]}  Nd7 {[%clk 0:02:37]} 14. O-O {[%clk 0:02:50]}  b6 {[%clk 0:02:31]} 15. c4 {[%clk 0:02:47]}  Nc5 {[%clk 0:02:24]} 16. Rad1 {[%clk 0:02:36]}  Bd7 {[%clk 0:02:17]} 17. f4 {[%clk 0:02:34]}  Re8 {[%clk 0:02:13]} 18. f5 {[%clk 0:02:30]}  Qf6 {[%clk 0:02:11]} 19. Kh1 {[%clk 0:02:18]}  Ba4 {[%clk 0:01:53]} 20. Nxc5 {[%clk 0:02:00]}  bxc5 {[%clk 0:01:54]} 21. b3 {[%clk 0:01:56]}  Bd7 {[%clk 0:01:54]} 22. Bd3 {[%clk 0:01:47]}  e4 {[%clk 0:01:41]} 23. Bc2 {[%clk 0:01:44]}  Re5 {[%clk 0:01:42]} 24. g4 {[%clk 0:01:43]}  h6 {[%clk 0:01:41]} 25. Rf4 {[%clk 0:01:41]}  Rae8 {[%clk 0:01:39]} 26. Re1 {[%clk 0:01:41]}  a5 {[%clk 0:01:32]} 27. Re2 {[%clk 0:01:24]}  a4 {[%clk 0:01:13]} 28. bxa4 {[%clk 0:01:14]}  Ra8 {[%clk 0:01:12]} 29. Rxe4 {[%clk 0:01:11]}  Rxe4 {[%clk 0:00:56]} 30. Qxe4 {[%clk 0:01:11]}  Re8 {[%clk 0:00:41]} 31. Qd3 {[%clk 0:01:09]}  Rb8 {[%clk 0:00:37]} 32. Bb3 {[%clk 0:00:57]}  Qh4 {[%clk 0:00:35]} 33. Qg3 {[%clk 0:00:56]}  Qf6 {[%clk 0:00:35]} 34. Kg2 {[%clk 0:00:54]}  Ra8 {[%clk 0:00:34]} 35. Qe3 {[%clk 0:00:47]}  h5 {[%clk 0:00:29]} 36. Qe7 {[%clk 0:00:46]}  Bxa4 {[%clk 0:00:09]} 37. Qxf6 {[%clk 0:00:45]}  gxf6 {[%clk 0:00:09]} 38. gxh5 {[%clk 0:00:42]}  Bd7 {[%clk 0:00:10]} 39. Rf2 {[%clk 0:00:39]}  Kg7 {[%clk 0:00:10]} 40. Kg3 {[%clk 0:00:39]}  Kh6 {[%clk 0:00:11]} 41. Kf4 {[%clk 0:00:39]}  Re8 {[%clk 0:00:06]} 42. Rf3 {[%clk 0:00:37]}  Re5 {[%clk 0:00:04]} 43. Bc2 {[%clk 0:00:34]}  Re2 {[%clk 0:00:04]} 44. Bb3 {[%clk 0:00:29]}  Rxh2 {[%clk 0:00:04]} 45. Re3 {[%clk 0:00:27]}  Rh4+ {[%clk 0:00:04]} 46. Kg3 {[%clk 0:00:26]}  Rxh5 {[%clk 0:00:05]} 47. Re7 {[%clk 0:00:26]}  Bxf5 {[%clk 0:00:05]} 48. Rxf7 {[%clk 0:00:25]}  Kg6 {[%clk 0:00:06]} 49. Rf8 {[%clk 0:00:24]}  Rh3+ {[%clk 0:00:06]} 50. Kf4 {[%clk 0:00:24]}  Rh4+ {[%clk 0:00:07]} 51. Kg3 {[%clk 0:00:24]}  Rd4 {[%clk 0:00:06]} 52. Rd8 {[%clk 0:00:23]}  Bd3 {[%clk 0:00:06]} 53. Rxd6 {[%clk 0:00:22]}  Kg5 {[%clk 0:00:06]} 54. Rc6 {[%clk 0:00:20]}  f5 {[%clk 0:00:04]} 55. Rxc5 {[%clk 0:00:20]}  f4+ {[%clk 0:00:05]} 56. Kf2 {[%clk 0:00:20]}  Be4 {[%clk 0:00:05]} 57. d6+ {[%clk 0:00:20]}  Kf6 {[%clk 0:00:05]} 58. Rc8 {[%clk 0:00:19]}  Rxd6 {[%clk 0:00:04]} 59. Rf8+ {[%clk 0:00:18]}  Kg5 {[%clk 0:00:03]} 60. c5 {[%clk 0:00:19]}  Rd2+ {[%clk 0:00:04]} 61. Ke1 {[%clk 0:00:19]}  Rh2 {[%clk 0:00:04]} 62. Re8 {[%clk 0:00:16]}  Kf5 {[%clk 0:00:02]} 63. Be6+ {[%clk 0:00:15]}  Kf6 {[%clk 0:00:02]} 64. Bc4 {[%clk 0:00:14]}  Kf5 {[%clk 0:00:02]} 65. Be6+ {[%clk 0:00:14]}  Ke5 {[%clk 0:00:02]} 66. Bc4+ {[%clk 0:00:14]}  Kd4 {[%clk 0:00:02]} 67. Bb3 {[%clk 0:00:11]}  Ke3 {[%clk 0:00:02]} 68. Kd1 {[%clk 0:00:11]}  Rh1# {[%clk 0:00:02]} 0-1


[Site "https://www.chess.com"]

[Event "Titled Tuesday Blitz October 25 Late 2022"]
[White "Golubev, Mikhail"]
[Black "Korobov, Anton"]
[WhiteFideId "14100983"]
[BlackFideId "14105730"]
[WhiteElo "2518"]
[BlackElo "3045"]
[Result "0-1"]
[Round "01"]
[TimeControl "180+1"]
[Date "2022.10.26"]
[WhiteClock "0:00:01"]
[BlackClock "0:00:15"]

1. e4 {[%clk 0:03:00]}  c5 {[%clk 0:02:59]} 2. Nf3 {[%clk 0:03:00]}  d6 {[%clk 0:02:59]} 3. d4 {[%clk 0:03:00]}  cxd4 {[%clk 0:02:59]} 4. Nxd4 {[%clk 0:03:00]}  Nf6 {[%clk 0:03:00]} 5. Nc3 {[%clk 0:03:00]}  a6 {[%clk 0:03:00]} 6. Bc4 {[%clk 0:02:59]}  e6 {[%clk 0:02:58]} 7. Bb3 {[%clk 0:02:58]}  Be7 {[%clk 0:02:58]} 8. f4 {[%clk 0:02:56]}  O-O {[%clk 0:02:57]} 9. Be3 {[%clk 0:02:55]}  b5 {[%clk 0:02:49]} 10. e5 {[%clk 0:02:50]}  dxe5 {[%clk 0:02:36]} 11. fxe5 {[%clk 0:02:50]}  Nfd7 {[%clk 0:02:31]} 12. Qf3 {[%clk 0:02:49]}  Ra7 {[%clk 0:02:23]} 13. O-O-O {[%clk 0:02:23]}  Rc7 {[%clk 0:01:57]} 14. Ne4 {[%clk 0:01:49]}  Bb7 {[%clk 0:01:51]} 15. Qf4 {[%clk 0:01:21]}  Bxe4 {[%clk 0:01:49]} 16. Qxe4 {[%clk 0:01:21]}  Nc5 {[%clk 0:01:47]} 17. Qg4 {[%clk 0:01:16]}  Qc8 {[%clk 0:01:22]} 18. Bh6 {[%clk 0:01:01]}  g6 {[%clk 0:01:22]} 19. Bxf8 {[%clk 0:00:59]}  Bxf8 {[%clk 0:01:23]} 20. Kb1 {[%clk 0:00:42]}  Nbd7 {[%clk 0:01:21]} 21. Nxe6 {[%clk 0:00:14]}  fxe6 {[%clk 0:01:14]} 22. Bxe6+ {[%clk 0:00:13]}  Kh8 {[%clk 0:01:02]} 23. Rhf1 {[%clk 0:00:13]}  Bg7 {[%clk 0:00:53]} 24. Bxd7 {[%clk 0:00:13]}  Nxd7 {[%clk 0:00:47]} 25. Rf7 {[%clk 0:00:10]}  Nxe5 {[%clk 0:00:43]} 26. Rxc7 {[%clk 0:00:08]}  Qxc7 {[%clk 0:00:43]} 27. Qe6 {[%clk 0:00:08]}  h5 {[%clk 0:00:38]} 28. Qxa6 {[%clk 0:00:06]}  Qc5 {[%clk 0:00:28]} 29. a3 {[%clk 0:00:05]}  Kh7 {[%clk 0:00:28]} 30. Qe6 {[%clk 0:00:04]}  Qf2 {[%clk 0:00:21]} 31. Qe7 {[%clk 0:00:02]}  Qxg2 {[%clk 0:00:18]} 32. Re1 {[%clk 0:00:02]}  Qxh2 {[%clk 0:00:18]} 33. Re4 {[%clk 0:00:01]}  Nc4 {[%clk 0:00:15]} 0-1


[Site "https://www.chess.com"]

[Event "Titled Tuesday Blitz October 25 Late 2022"]
[White "Gonzalez, Francisco Silva"]
[Black "Abdyzhapar, Asylbek"]
[WhiteFideId "1512285"]
[BlackFideId "13800337"]
[WhiteElo "2159"]
[BlackElo "2323"]
[Result "0-1"]
[Round "01"]
[TimeControl "180+1"]
[Date "2022.10.26"]
[WhiteClock "0:00:40"]
[BlackClock "0:01:40"]

1. d4 {[%clk 0:02:58]}  Nf6 {[%clk 0:02:59]} 2. c4 {[%clk 0:02:55]}  c5 {[%clk 0:02:59]} 3. d5 {[%clk 0:02:52]}  e6 {[%clk 0:03:00]} 4. Nc3 {[%clk 0:02:51]}  exd5 {[%clk 0:02:59]} 5. cxd5 {[%clk 0:02:42]}  d6 {[%clk 0:02:59]} 6. Nf3 {[%clk 0:02:37]}  g6 {[%clk 0:02:59]} 7. Bf4 {[%clk 0:02:35]}  Bg7 {[%clk 0:02:58]} 8. h3 {[%clk 0:02:34]}  O-O {[%clk 0:02:58]} 9. e3 {[%clk 0:02:29]}  Qe7 {[%clk 0:02:57]} 10. Be2 {[%clk 0:02:27]}  a6 {[%clk 0:02:57]} 11. a4 {[%clk 0:02:26]}  Nbd7 {[%clk 0:02:57]} 12. O-O {[%clk 0:02:25]}  Ne8 {[%clk 0:02:56]} 13. Re1 {[%clk 0:02:24]}  Rb8 {[%clk 0:02:56]} 14. Qc2 {[%clk 0:02:23]}  Nc7 {[%clk 0:02:55]} 15. e4 {[%clk 0:02:19]}  b5 {[%clk 0:02:52]} 16. axb5 {[%clk 0:02:19]}  Nxb5 {[%clk 0:02:52]} 17. Bf1 {[%clk 0:02:15]}  Nd4 {[%clk 0:02:50]} 18. Nxd4 {[%clk 0:02:14]}  cxd4 {[%clk 0:02:47]} 19. Na4 {[%clk 0:02:13]}  Ne5 {[%clk 0:02:40]} 20. Rac1 {[%clk 0:02:09]}  Bd7 {[%clk 0:02:35]} 21. Bxa6 {[%clk 0:02:00]}  d3 {[%clk 0:02:34]} 22. Qd1 {[%clk 0:01:56]}  Ra8 {[%clk 0:02:30]} 23. Bxe5 {[%clk 0:01:53]}  Bxe5 {[%clk 0:02:28]} 24. Nb6 {[%clk 0:01:38]}  Rxa6 {[%clk 0:02:27]} 25. Nxd7 {[%clk 0:01:39]}  Qxd7 {[%clk 0:02:27]} 26. Qxd3 {[%clk 0:01:40]}  Rb6 {[%clk 0:02:27]} 27. Rc4 {[%clk 0:01:37]}  Rxb2 {[%clk 0:02:25]} 28. Rec1 {[%clk 0:01:37]}  Qa7 {[%clk 0:02:25]} 29. Qf3 {[%clk 0:01:35]}  Bd4 {[%clk 0:02:13]} 30. R4c2 {[%clk 0:01:30]}  Rxc2 {[%clk 0:02:10]} 31. Rxc2 {[%clk 0:01:30]}  Rb8 {[%clk 0:02:08]} 32. Kh2 {[%clk 0:01:29]}  Be5+ {[%clk 0:02:06]} 33. g3 {[%clk 0:01:28]}  Kg7 {[%clk 0:02:06]} 34. h4 {[%clk 0:01:28]}  h5 {[%clk 0:02:05]} 35. Kg2 {[%clk 0:01:15]}  Rb1 {[%clk 0:02:03]} 36. Kh2 {[%clk 0:01:05]}  Re1 {[%clk 0:01:57]} 37. Rc8 {[%clk 0:01:03]}  Bd4 {[%clk 0:01:50]} 38. g4 {[%clk 0:00:58]}  Be5+ {[%clk 0:01:47]} 39. Kg2 {[%clk 0:00:57]}  Qa1 {[%clk 0:01:42]} 40. Qd3 {[%clk 0:00:41]}  Rg1+ {[%clk 0:01:41]} 41. Kf3 {[%clk 0:00:41]}  hxg4+ {[%clk 0:01:41]} 42. Ke2 {[%clk 0:00:40]}  Qe1# {[%clk 0:01:40]} 0-1


[Site "https://www.chess.com"]